fUSD/lending_fUSD_20250123
["ID","MTS","AMOUNT","RATE_DAILY","PERIOD"]
[350104897,1737629433293,-500.0,0.00016438,2]
[350104898,1737629433302,-500.0,0.00016438,2]
[350104899,1737629433312,-500.0,0.00016438,2]
[350104900,1737629433320,-524.25462954,0.00016438,2]
[350104901,1737629433331,-500.0,0.00016438,2]
[350104902,1737629433341,-500.0,0.00016438,2]
[350104903,1737629433351,-677.64,0.00016438,2]
[350104904,1737629433361,-500.0,0.00016438,2]
[350104905,1737629433371,-500.0,0.00016438,2]
[350104906,1737629433380,-500.0,0.00016438,2]
[350104907,1737629433390,-500.0,0.00016438,2]
[350104908,1737629433400,-623.29,0.00016438,2]
[350104909,1737629433410,-500.0,0.00016438,2]
[350104910,1737629433420,-500.0,0.00016438,2]
[350104911,1737629433430,-500.0,0.00016438,2]
[350104912,1737629433440,-500.0,0.00016438,2]
[350104913,1737629433450,-500.0,0.00016438,2]
[350104914,1737629433459,-560.25,0.00016438,2]
[350104915,1737629433469,-500.0,0.00016438,2]
[350104916,1737629433478,-500.0,0.00016438,2]
[350104917,1737629433487,-500.0,0.00016438,2]
[350104918,1737629433497,-500.0,0.00016438,2]
[350104919,1737629433506,-500.0,0.00016438,2]
[350104920,1737629433516,-500.0,0.00016438,2]
[350104921,1737629433525,-500.0,0.00016438,2]
[350104922,1737629433535,-500.0,0.00016438,2]
[350104923,1737629433545,-500.0,0.00016438,2]
[350104924,1737629433554,-500.0,0.00016438,2]
[350104925,1737629433564,-500.0,0.00016438,2]
[350104926,1737629433573,-171.69,0.00016472,2]
[350104927,1737629433583,-1000.0,0.00016513,2]
[350104928,1737629433593,-41013.51298464,0.00016611,2]
[350104929,1737629433602,-1637.5648,0.00016612,2]
[350104930,1737629433611,-834.81,0.00016702,2]
[350104931,1737629433620,-567.642902,0.00016711,2]
[350104932,1737629433630,-158.602003,0.00016711,2]
[350104933,1737629433639,-470.86134,0.00016711,2]
[350104934,1737629433648,-500.0,0.00016711,2]
[350104935,1737629433659,-500.0,0.00016711,2]
[350104936,1737629433668,-500.0,0.00016711,2]
[350104937,1737629433677,-500.0,0.00016711,2]
[350104938,1737629433686,-213.125266,0.00016711,2]
[350104939,1737629433696,-830.77,0.00016711,2]
[350104940,1737629433705,-500.0,0.00016711,2]
[350104941,1737629433715,-1829.8,0.00016711,2]
[350104942,1737629433724,-500.0,0.00016711,2]
[350104943,1737629433734,-500.0,0.00016711,2]
[350104944,1737629433743,-1187.25,0.00016711,2]
[350104945,1737629433752,-964.19,0.00016711,2]
[350104946,1737629433761,-1786.41,0.00016711,2]
[350104947,1737629433771,-636.42503143,0.00016711,2]
[350104948,1737629433780,-500.0,0.00016711,2]
[350104949,1737629433790,-500.0,0.00016711,2]
[350104950,1737629433799,-610.15,0.00016711,2]
[350104951,1737629433808,-500.0,0.00016711,2]
[350104952,1737629433817,-500.0,0.00016711,2]
[350104953,1737629433826,-500.0,0.00016711,2]
[350104954,1737629433836,-721.57,0.00016711,2]
[350104955,1737629433846,-500.0,0.00016711,2]
[350104956,1737629433855,-500.0,0.00016711,2]
[350104957,1737629433864,-500.0,0.00016711,2]
[350104958,1737629433874,-621.51,0.00016711,2]
[350104959,1737629433883,-891.31,0.00016711,2]
[350104960,1737629433893,-912.02,0.00016711,2]
[350104961,1737629433902,-500.0,0.00016711,2]
[350104962,1737629433911,-500.0,0.00016711,2]
[350104963,1737629433920,-1807.22,0.00016711,2]
[350104964,1737629433930,-548.53,0.00016711,2]
[350104965,1737629433939,-1524.16,0.00016711,2]
[350104966,1737629433948,-500.0,0.00016711,2]
[350104967,1737629433957,-500.0,0.00016711,2]
[350104968,1737629433966,-500.0,0.00016711,2]
[350104969,1737629433976,-500.0,0.00016711,2]
[350104970,1737629433985,-1263.37,0.00016711,2]
[350104971,1737629433995,-1410.96,0.00016711,2]
[350104972,1737629434004,-500.0,0.00016711,2]
[350104973,1737629434013,-500.0,0.00016711,2]
[350104974,1737629434022,-500.0,0.00016711,2]
[350104975,1737629434032,-714.16,0.00016711,2]
[350104976,1737629434041,-898.59,0.00016711,2]
[350104977,1737629434050,-500.0,0.00016711,2]
[350104978,1737629434060,-500.0,0.00016711,2]
[350104979,1737629434072,-500.0,0.00016711,2]
[350104980,1737629434081,-500.0,0.00016711,2]
[350104981,1737629434090,-1546.03,0.00016711,2]
[350104982,1737629434099,-500.0,0.00016711,2]
[350104983,1737629434109,-500.0,0.00016711,2]
[350104984,1737629434119,-2511.44,0.00016711,2]
[350104985,1737629434128,-500.0,0.00016711,2]
[350104986,1737629434137,-2204.89,0.00016711,2]
[350104987,1737629434148,-1906.86,0.00016711,2]
[350104988,1737629434158,-1174.78,0.00016711,2]
[350104989,1737629434167,-1059.04,0.00016711,2]
[350104990,1737629434176,-818.1,0.00016711,2]
[350104991,1737629434185,-500.0,0.00016711,2]
[350104992,1737629434195,-500.0,0.00016711,2]
[350104993,1737629434205,-500.0,0.00016711,2]
[350104994,1737629434214,-1208.98,0.00016711,2]
[350104995,1737629434223,-1446.68,0.00016711,2]
[350104996,1737629434233,-500.0,0.00016711,2]
[350104997,1737629434242,-500.0,0.00016711,2]
[350104998,1737629434251,-732.99,0.00016711,2]
[350104999,1737629434260,-621.55,0.00016711,2]
[350105000,1737629434269,-840.57,0.00016711,2]
[350105001,1737629434279,-783.06,0.00016711,2]
[350105002,1737629434288,-500.0,0.00016711,2]
[350105003,1737629434298,-932.55,0.00016711,2]
[350105004,1737629434307,-500.0,0.00016711,2]
[350105005,1737629434317,-1012.86,0.00016711,2]
[350105006,1737629434326,-377.21449043,0.00016711,2]
[350105007,1737629434342,-122.78550957,0.00016711,2]
[350105008,1737629434351,-500.0,0.00016711,2]
[350105009,1737629434360,-578.78,0.00016711,2]
[350105010,1737629434370,-1969.18,0.00016711,2]
[350105011,1737629434379,-849.57,0.00016711,2]
[350105012,1737629434388,-535.65,0.00016711,2]
[350105013,1737629434397,-500.0,0.00016711,2]
[350105014,1737629434407,-500.0,0.00016711,2]
[350105015,1737629434416,-500.0,0.00016711,2]
[350105016,1737629434425,-1235.41,0.00016711,2]
[350105017,1737629434434,-500.0,0.00016711,2]
[350105018,1737629434444,-1408.92,0.00016711,2]
[350105019,1737629434453,-196.76483455,0.00016711,2]
[350105020,1737629434462,-1650.4,0.00016711,2]
[350105021,1737629434471,-1005.35,0.00016711,2]
[350105022,1737629434481,-500.0,0.00016711,2]
[350105023,1737629434490,-651.28,0.00016711,2]
[350105024,1737629434499,-500.0,0.00016711,2]
[350105025,1737629434508,-585.79,0.00016711,2]
[350105026,1737629434517,-867.38,0.00016711,2]
[350105027,1737629434526,-500.0,0.00016711,2]
[350105028,1737629434535,-691.72,0.00016711,2]
[350105029,1737629434544,-313.38406514,0.00016711,2]
[350105030,1737629434554,-500.0,0.00016711,2]
[350105031,1737629434563,-1683.06,0.00016711,2]
[350105032,1737629434572,-500.0,0.00016711,2]
[350105033,1737629434582,-891.24,0.00016711,2]
[350105034,1737629434594,-1102.55,0.00016711,2]
[350105035,1737629434604,-500.0,0.00016711,2]
[350105036,1737629434613,-500.0,0.00016711,2]
[350105037,1737629434622,-500.0,0.00016711,2]
[350105038,1737629434631,-3475.0,0.00016711,2]
[350105039,1737629434640,-500.0,0.00016711,2]
[350105040,1737629434650,-500.0,0.00016711,2]
[350105041,1737629434659,-186.475666,0.00016711,2]
[350105042,1737629434668,-500.0,0.00016711,2]
[350105043,1737629434677,-500.0,0.00016711,2]
[350105044,1737629434687,-500.0,0.00016711,2]
[350105045,1737629434696,-500.0,0.00016711,2]
[350105046,1737629434705,-500.0,0.00016711,2]
[350105047,1737629434714,-1060.86,0.00016711,2]
[350105048,1737629434723,-1883.48,0.00016711,2]
[350105049,1737629434733,-500.0,0.00016711,2]
[350105050,1737629434742,-500.0,0.00016711,2]
[350105051,1737629434752,-500.0,0.00016711,2]
[350105052,1737629434761,-1329.17,0.00016711,2]
[350105053,1737629434771,-159.529244,0.00016711,2]
[350105054,1737629434781,-516.61,0.00016711,2]
[350105055,1737629434791,-500.0,0.00016711,2]
[350105056,1737629434800,-500.0,0.00016711,2]
[350105057,1737629434809,-500.0,0.00016711,2]
[350105058,1737629434818,-500.0,0.00016711,2]
[350105059,1737629434828,-160.233145,0.00016711,2]
[350105060,1737629434838,-500.0,0.00016711,2]
[350105061,1737629434852,-500.0,0.00016711,2]
[350105062,1737629434861,-584.61,0.00016711,2]
[350105063,1737629434871,-501.62462531,0.00016711,2]
[350105064,1737629434881,-547.46,0.00016711,2]
[350105065,1737629434891,-500.0,0.00016711,2]
[350105066,1737629434900,-500.0,0.00016711,2]
[350105067,1737629434909,-500.0,0.00016711,2]
[350105068,1737629434918,-563.15,0.00016711,2]
[350105069,1737629434928,-500.0,0.00016711,2]
[350105070,1737629434938,-502.97743495,0.00016711,2]
[350105071,1737629434947,-185.97,0.00016712,2]
[350105072,1737629434956,-500.0,0.00016712,2]
[350105073,1737629434965,-500.0,0.00016712,2]
[350105074,1737629434974,-500.0,0.00016712,2]
[350105075,1737629434983,-500.0,0.00016712,2]
[350105076,1737629434993,-500.0,0.00016712,2]
[350105077,1737629435002,-500.0,0.00016712,2]
[350105078,1737629435011,-500.0,0.00016712,2]
[350105079,1737629435019,-500.0,0.00016712,2]
[350105080,1737629435029,-500.0,0.00016712,2]
[350105081,1737629435037,-500.0,0.00016712,2]
[350105082,1737629435046,-500.0,0.00016712,2]
[350105083,1737629435055,-500.0,0.00016712,2]
[350105084,1737629435067,-500.0,0.00016712,2]
[350105085,1737629435077,-500.0,0.00016712,2]
[350105086,1737629435086,-500.0,0.00016712,2]
[350105087,1737629435098,-500.0,0.00016712,2]
[350105088,1737629435108,-500.0,0.00016712,2]
[350105089,1737629435117,-500.0,0.00016712,2]
[350105090,1737629435126,-561.53036257,0.00016712,2]
[350105091,1737629435136,-500.0,0.00016712,2]
[350105092,1737629435145,-500.0,0.00016712,2]
[350105093,1737629435154,-503.07802915,0.00016712,2]
[350105094,1737629435163,-500.0,0.00016712,2]
[350105095,1737629435173,-676.19,0.00016712,2]
[350105096,1737629435182,-500.0,0.00016712,2]
[350105097,1737629435191,-500.0,0.00016712,2]
[350105098,1737629435205,-500.0,0.00016712,2]
[350105099,1737629435215,-500.0,0.00016712,2]
[350105100,1737629435225,-323.69142119,0.00016712,2]
[350105101,1737629435234,-500.0,0.00016712,2]
[350105102,1737629435244,-561.96,0.00016712,2]
[350105103,1737629435253,-500.0,0.00016712,2]
[350105104,1737629435262,-500.0,0.00016712,2]
[350105105,1737629435271,-500.0,0.00016712,2]
[350105106,1737629435281,-1042.61,0.00016712,2]
[350105107,1737629435290,-500.0,0.00016712,2]
[350105108,1737629435299,-500.0,0.00016712,2]
[350105109,1737629435309,-500.0,0.00016712,2]
[350105110,1737629435319,-500.0,0.00016712,2]
[350105111,1737629435328,-500.0,0.00016712,2]
[350105112,1737629435337,-500.0,0.00016712,2]
[350105113,1737629435348,-642.63115681,0.00016712,2]
[350105114,1737629435357,-500.0,0.00016712,2]
[350105115,1737629435366,-500.0,0.00016712,2]
[350105116,1737629435376,-500.0,0.00016712,2]
[350105117,1737629435386,-500.0,0.00016712,2]
[350105118,1737629435398,-500.0,0.00016712,2]
[350105119,1737629435408,-500.0,0.00016712,2]
[350105120,1737629435417,-300.0,0.00016712,2]
[350105121,1737629435427,-500.0,0.00016712,2]
[350105122,1737629435437,-500.0,0.00016712,2]
[350105123,1737629435446,-500.0,0.00016712,2]
[350105124,1737629435456,-500.0,0.00016712,2]
[350105125,1737629435465,-500.0,0.00016712,2]
[350105126,1737629435474,-500.0,0.00016712,2]
[350105127,1737629435484,-500.0,0.00016712,2]
[350105128,1737629435493,-500.0,0.00016712,2]
[350105129,1737629435502,-500.0,0.00016712,2]
[350105130,1737629435512,-500.0,0.00016712,2]
[350105131,1737629435521,-500.0,0.00016712,2]
[350105132,1737629435530,-500.0,0.00016712,2]
[350105133,1737629435539,-264.50442501,0.00016712,2]
[350105134,1737629435548,-500.0,0.00016712,2]
[350105135,1737629435557,-500.0,0.00016712,2]
[350105136,1737629435567,-515.83184728,0.00016712,2]
[350105137,1737629435576,-677.64,0.00016712,2]
[350105138,1737629435586,-500.0,0.00016712,2]
[350105139,1737629435595,-500.0,0.00016712,2]
[350105140,1737629435604,-500.0,0.00016712,2]
[350105141,1737629435614,-623.29,0.00016712,2]
[350105142,1737629435623,-500.0,0.00016712,2]
[350105143,1737629435632,-500.0,0.00016712,2]
[350105144,1737629435641,-267.27331726,0.00016712,2]
[350105145,1737629435651,-500.0,0.00016712,2]
[350105146,1737629435660,-500.0,0.00016712,2]
[350105147,1737629435670,-500.0,0.00016712,2]
[350105148,1737629435679,-500.0,0.00016712,2]
[350105149,1737629435688,-519.1844596,0.00016712,2]
[350105150,1737629435698,-500.0,0.00016712,2]
[350105151,1737629435707,-409.88303278,0.00016712,2]
[350105152,1737629435716,-500.0,0.00016712,2]
[350105153,1737629435727,-500.0,0.00016712,2]
[350105154,1737629435736,-500.0,0.00016712,2]
[350105155,1737629435746,-500.0,0.00016712,2]
[350105156,1737629435756,-250.0,0.00016813,2]
[350105157,1737629435770,-354.83,0.00016813,2]
[350105158,1737629435780,-456.28986217,0.00016815,2]
[350105159,1737629435790,-22564.9052,0.00016885,2]
[350105160,1737629435800,-5000.0,0.00016885,2]
[350105161,1737629435810,-41013.5129846,0.00016899,2]
[350105162,1737629435820,-500.0,0.00016985,2]
[350105163,1737629435830,-500.0,0.00016985,2]
[350105164,1737629435840,-500.0,0.00016985,2]
[350105165,1737629435849,-541.17,0.00016985,2]
[350105166,1737629435859,-500.0,0.00016985,2]
[350105167,1737629435868,-500.0,0.00016985,2]
[350105168,1737629435878,-760.2,0.00016985,2]
[350105169,1737629435888,-500.0,0.00016985,2]
[350105170,1737629435897,-500.0,0.00016985,2]
[350105171,1737629435907,-500.0,0.00016985,2]
[350105172,1737629435916,-500.0,0.00016985,2]
[350105173,1737629435926,-500.0,0.00016985,2]
[350105174,1737629435936,-500.0,0.00016985,2]
[350105175,1737629435946,-500.0,0.00016985,2]
[350105176,1737629435955,-500.0,0.00016985,2]
[350105177,1737629435964,-500.0,0.00016985,2]
[350105178,1737629435974,-500.0,0.00016985,2]
[350105179,1737629435983,-402.47031007,0.00016985,2]
[350105180,1737629435993,-500.0,0.00016985,2]
[350105181,1737629436002,-500.0,0.00016985,2]
[350105182,1737629436013,-500.0,0.00016985,2]
[350105183,1737629436022,-500.0,0.00016985,2]
[350105184,1737629436032,-500.0,0.00016985,2]
[350105185,1737629436048,-500.0,0.00016985,2]
[350105186,1737629436060,-567.642902,0.00016985,2]
[350105187,1737629436072,-500.0,0.00016985,2]
[350105188,1737629436082,-500.0,0.00016985,2]
[350105189,1737629436092,-500.0,0.00016985,2]
[350105190,1737629436103,-593.21,0.00016985,2]
[350105196,1737629436265,-646.95,0.00016985,2]
[350105198,1737629436274,-500.0,0.00016985,2]
[350105200,1737629436284,-500.0,0.00016985,2]
[350105202,1737629436295,-500.0,0.00016985,2]
[350105203,1737629436304,-565.62,0.00016985,2]
[350105204,1737629436314,-500.0,0.00016985,2]
[350105205,1737629436324,-500.0,0.00016985,2]
[350105206,1737629436333,-470.86134,0.00016985,2]
[350105207,1737629436343,-678.15,0.00016985,2]
[350105208,1737629436353,-500.0,0.00016985,2]
[350105209,1737629436363,-500.0,0.00016985,2]
[350105210,1737629436372,-500.0,0.00016985,2]
[350105211,1737629436382,-500.0,0.00016985,2]
[350105212,1737629436391,-500.0,0.00016985,2]
[350105213,1737629436401,-681.16,0.00016985,2]
[350105214,1737629436410,-500.0,0.00016985,2]
[350105215,1737629436419,-500.0,0.00016985,2]
[350105217,1737629436429,-500.0,0.00016985,2]
[350105218,1737629436438,-667.51,0.00016985,2]
[350105220,1737629436447,-640.33,0.00016985,2]
[350105222,1737629436456,-500.0,0.00016985,2]
[350105224,1737629436465,-500.0,0.00016985,2]
[350105226,1737629436473,-500.0,0.00016985,2]
[350105228,1737629436483,-595.99,0.00016985,2]
[350105230,1737629436492,-500.0,0.00016985,2]
[350105231,1737629436502,-500.0,0.00016985,2]
[350105233,1737629436511,-500.0,0.00016985,2]
[350105235,1737629436520,-500.0,0.00016985,2]
[350105237,1737629436529,-580.84,0.00016985,2]
[350105239,1737629436538,-557.91,0.00016985,2]
[350105241,1737629436547,-500.0,0.00016985,2]
[350105243,1737629436557,-500.0,0.00016985,2]
[350105245,1737629436566,-500.0,0.00016985,2]
[350105247,1737629436576,-500.0,0.00016985,2]
[350105249,1737629436585,-500.0,0.00016985,2]
[350105251,1737629436595,-677.73,0.00016985,2]
[350105253,1737629436604,-641.1,0.00016985,2]
[350105255,1737629436614,-628.14,0.00016985,2]
[350105257,1737629436623,-830.77,0.00016985,2]
[350105259,1737629436632,-500.0,0.00016985,2]
[350105261,1737629436642,-1829.8,0.00016985,2]
[350105263,1737629436651,-500.0,0.00016985,2]
[350105265,1737629436660,-500.0,0.00016985,2]
[350105267,1737629436669,-618.97,0.00016985,2]
[350105270,1737629436679,-500.0,0.00016985,2]
[350105272,1737629436688,-1187.25,0.00016985,2]
[350105273,1737629436698,-500.0,0.00016985,2]
[350105275,1737629436707,-731.49,0.00016985,2]
[350105277,1737629436716,-964.19,0.00016985,2]
[350105279,1737629436725,-767.94,0.00016985,2]
[350105281,1737629436735,-1786.41,0.00016985,2]
[350105283,1737629436744,-761.18,0.00016985,2]
[350105285,1737629436753,-500.0,0.00016985,2]
[350105287,1737629436763,-622.99,0.00016985,2]
[350105290,1737629436772,-610.15,0.00016985,2]
[350105292,1737629436781,-500.0,0.00016985,2]
[350105293,1737629436791,-775.97,0.00016985,2]
[350105295,1737629436800,-1101.74,0.00016985,2]
[350105297,1737629436809,-500.0,0.00016985,2]
[350105299,1737629436818,-721.57,0.00016985,2]
[350105301,1737629436828,-958.21,0.00016985,2]
[350105303,1737629436837,-621.51,0.00016985,2]
[350105306,1737629436848,-891.31,0.00016985,2]
[350105308,1737629436858,-2397.97,0.00016985,2]
[350105310,1737629436867,-912.02,0.00016985,2]
[350105311,1737629436877,-500.0,0.00016985,2]
[350105313,1737629436886,-2073.02,0.00016985,2]
[350105315,1737629436896,-500.0,0.00016985,2]
[350105317,1737629436906,-1807.22,0.00016985,2]
[350105319,1737629436915,-500.0,0.00016985,2]
[350105321,1737629436925,-548.53,0.00016985,2]
[350105323,1737629436934,-1524.16,0.00016985,2]
[350105325,1737629436943,-3879.59,0.00016985,2]
[350105327,1737629436952,-500.0,0.00016985,2]
[350105329,1737629436961,-504.83,0.00016985,2]
[350105331,1737629436971,-1263.37,0.00016985,2]
[350105333,1737629436980,-1410.96,0.00016985,2]
[350105335,1737629436989,-500.0,0.00016985,2]
[350105337,1737629436999,-500.0,0.00016985,2]
[350105339,1737629437008,-500.0,0.00016985,2]
[350105341,1737629437017,-714.16,0.00016985,2]
[350105343,1737629437028,-898.59,0.00016985,2]
[350105345,1737629437037,-746.79,0.00016985,2]
[350105347,1737629437047,-500.0,0.00016985,2]
[350105349,1737629437057,-500.0,0.00016985,2]
[350105351,1737629437069,-500.0,0.00016985,2]
[350105353,1737629437078,-500.0,0.00016985,2]
[350105355,1737629437088,-500.0,0.00016985,2]
[350105357,1737629437099,-1546.03,0.00016985,2]
[350105359,1737629437109,-2511.44,0.00016985,2]
[350105361,1737629437119,-500.0,0.00016985,2]
[350105363,1737629437128,-500.0,0.00016985,2]
[350105365,1737629437140,-2204.89,0.00016985,2]
[350105367,1737629437149,-500.0,0.00016985,2]
[350105369,1737629437159,-1906.86,0.00016985,2]
[350105371,1737629437168,-739.87,0.00016985,2]
[350105373,1737629437178,-1174.78,0.00016985,2]
[350105375,1737629437187,-1059.04,0.00016985,2]
[350105377,1737629437196,-818.1,0.00016985,2]
[350105379,1737629437205,-2835.27,0.00016985,2]
[350105381,1737629437214,-1894.35,0.00016985,2]
[350105383,1737629437223,-544.27955278,0.00016985,2]
[350105385,1737629437232,-454.42289923,0.00016985,2]
[350105387,1737629437241,-500.0,0.00016985,2]
[350105389,1737629437251,-500.0,0.00016985,2]
[350105391,1737629437260,-1208.98,0.00016985,2]
[350105393,1737629437269,-1446.68,0.00016985,2]
[350105395,1737629437278,-500.0,0.00016985,2]
[350105397,1737629437287,-500.0,0.00016985,2]
[350105399,1737629437297,-732.99,0.00016985,2]
[350105401,1737629437306,-500.0,0.00016985,2]
[350105403,1737629437316,-840.57,0.00016985,2]
[350105405,1737629437325,-783.06,0.00016985,2]
[350105407,1737629437335,-728.5,0.00016985,2]
[350105409,1737629437346,-514.51,0.00016985,2]
[350105411,1737629437355,-932.55,0.00016985,2]
[350105413,1737629437364,-500.0,0.00016985,2]
[350105415,1737629437374,-1012.86,0.00016985,2]
[350105417,1737629437384,-500.0,0.00016985,2]
[350105419,1737629437393,-500.0,0.00016985,2]
[350105421,1737629437402,-578.78,0.00016985,2]
[350105423,1737629437411,-1969.18,0.00016985,2]
[350105425,1737629437421,-500.0,0.00016985,2]
[350105427,1737629437430,-849.57,0.00016985,2]
[350105429,1737629437440,-933.81,0.00016985,2]
[350105431,1737629437449,-535.65,0.00016985,2]
[350105433,1737629437458,-500.0,0.00016985,2]
[350105435,1737629437468,-500.0,0.00016985,2]
[350105437,1737629437477,-500.0,0.00016985,2]
[350105439,1737629437486,-1235.41,0.00016985,2]
[350105440,1737629437495,-500.0,0.00016985,2]
[350105443,1737629437506,-1153.99,0.00016985,2]
[350105444,1737629437515,-500.0,0.00016985,2]
[350105446,1737629437524,-1408.92,0.00016985,2]
[350105448,1737629437533,-1650.4,0.00016985,2]
[350105450,1737629437543,-500.0,0.00016985,2]
[350105452,1737629437552,-500.0,0.00016985,2]
[350105454,1737629437562,-1005.35,0.00016985,2]
[350105456,1737629437571,-1447.16,0.00016985,2]
[350105458,1737629437580,-651.28,0.00016985,2]
[350105460,1737629437589,-472.62642039,0.00016985,2]
[350105462,1737629437600,-500.0,0.00016985,2]
[350105465,1737629437610,-500.0,0.00016985,2]
[350105467,1737629437619,-585.79,0.00016985,2]
[350105469,1737629437629,-867.38,0.00016985,2]
[350105470,1737629437639,-500.0,0.00016985,2]
[350105472,1737629437648,-1000.0,0.00016985,2]
[350105474,1737629437657,-500.0,0.00016985,2]
[350105476,1737629437666,-481.96693255,0.00016985,2]
[350105478,1737629437676,-950.49,0.00016985,2]
[350105480,1737629437685,-511.08,0.00016985,2]
[350105482,1737629437694,-691.72,0.00016985,2]
[350105484,1737629437703,-1683.06,0.00016985,2]
[350105486,1737629437713,-500.0,0.00016985,2]
[350105489,1737629437723,-500.0,0.00016985,2]
[350105491,1737629437733,-891.24,0.00016985,2]
[350105493,1737629437742,-500.0,0.00016985,2]
[350105494,1737629437751,-1102.55,0.00016985,2]
[350105496,1737629437761,-500.0,0.00016985,2]
[350105498,1737629437771,-500.0,0.00016985,2]
[350105501,1737629437780,-1417.49,0.00016985,2]
[350105503,1737629437790,-500.0,0.00016985,2]
[350105505,1737629437799,-500.0,0.00016985,2]
[350105507,1737629437809,-500.0,0.00016985,2]
[350105509,1737629437818,-3475.0,0.00016985,2]
[350105511,1737629437827,-500.0,0.00016985,2]
[350105513,1737629437837,-500.0,0.00016985,2]
[350105515,1737629437847,-505.85273738,0.00016985,2]
[350105517,1737629437856,-466.12596238,0.00016985,2]
[350105519,1737629437866,-500.0,0.00016985,2]
[350105521,1737629437875,-500.0,0.00016985,2]
[350105523,1737629437885,-470.8193564,0.00016985,2]
[350105525,1737629437894,-500.0,0.00016985,2]
[350105527,1737629437904,-507.63603905,0.00016985,2]
[350105529,1737629437913,-1060.86,0.00016985,2]
[350105532,1737629437923,-1883.48,0.00016985,2]
[350105535,1737629437932,-225.7100131,0.00016985,2]
[350105537,1737629437942,-502.5240119,0.00016985,2]
[350105538,1737629437951,-500.0,0.00016985,2]
[350105540,1737629437960,-500.0,0.00016985,2]
[350105542,1737629437970,-1329.17,0.00016985,2]
[350105544,1737629437979,-1633.56,0.00016985,2]
[350105546,1737629437988,-500.0,0.00016985,2]
[350105548,1737629437999,-516.61,0.00016985,2]
[350105550,1737629438008,-500.0,0.00016985,2]
[350105553,1737629438018,-499.6720841,0.00016985,2]
[350105555,1737629438027,-500.0,0.00016985,2]
[350105557,1737629438036,-500.0,0.00016985,2]
[350105559,1737629438046,-500.0,0.00016985,2]
[350105561,1737629438055,-500.0,0.00016985,2]
[350105562,1737629438068,-500.0,0.00016985,2]
[350105564,1737629438077,-500.0,0.00016985,2]
[350105566,1737629438086,-584.61,0.00016985,2]
[350105568,1737629438096,-500.0,0.00016985,2]
[350105570,1737629438106,-503.27727222,0.00016985,2]
[350105572,1737629438116,-547.46,0.00016985,2]
[350105574,1737629438125,-500.0,0.00016985,2]
[350105576,1737629438134,-500.0,0.00016985,2]
[350105578,1737629438146,-506.64188296,0.00016985,2]
[350105580,1737629438155,-500.0,0.00016985,2]
[350105582,1737629438165,-563.15,0.00016985,2]
[350105584,1737629438174,-164.12083521,0.00016985,2]
[350105586,1737629438183,-500.0,0.00016986,2]
[350105588,1737629438191,-500.0,0.00016986,2]
[350105590,1737629438201,-500.0,0.00016986,2]
[350105592,1737629438210,-500.0,0.00016986,2]